[Event "Lilla Elite Hotels Open 2024"]
[Site "Elite Stadshotellet, Kungsgatan 6, Vaxjo, Sweden"]
[Date "2024.02.10"]
[Round "6.2"]
[White "Mulato, Marvin"]
[Black "Nordin, Marcus"]
[Result "0-1"]
[TimeControl "15 minutes + 5 seconds per move from move one (Round 1 - 4) / 90 minutes + 30 seconds per move from move one (Round 5 - 8)"]
[WhiteFideId "1733702"]
[BlackFideId "1753444"]
[WhiteElo "1500"]
[BlackElo "1410"]

1. Nf3 {[%clk 01:30:58]} {[%emt 00:00:02]} Nf6 {[%clk 01:30:27]} {[%emt
00:00:33]} 2. c4 {[%clk 01:31:18]} {[%emt 00:00:10]} e6 {[%clk 01:30:39]}
{[%emt 00:00:18]} 3. g3 {[%clk 01:30:00]} {[%emt 00:01:48]} b6 {[%clk
01:30:33]} {[%emt 00:00:37]} 4. Bg2 {[%clk 01:29:20]} {[%emt 00:01:09]} Bb7
{[%clk 01:30:53]} {[%emt 00:00:10]} 5. b3 {[%clk 01:26:27]} {[%emt 00:03:23]}
Be7 {[%clk 01:28:59]} {[%emt 00:02:24]} 6. O-O {[%clk 01:26:26]} {[%emt
00:00:31]} O-O {[%clk 01:29:22]} {[%emt 00:00:07]} 7. Bb2 {[%clk 01:25:48]}
{[%emt 00:01:08]} c5 {[%clk 01:26:52]} {[%emt 00:03:00]} 8. e3 {[%clk
01:21:11]} {[%emt 00:05:07]} d5 {[%clk 01:23:30]} {[%emt 00:03:51]} 9. d4
{[%clk 01:19:25]} {[%emt 00:02:17]} Nc6 {[%clk 01:20:24]} {[%emt 00:03:36]} 10.
Nbd2 {[%clk 01:13:07]} {[%emt 00:06:47]} Rc8 {[%clk 01:16:19]} {[%emt
00:04:36]} 11. Qb1 {[%clk 00:58:46]} {[%emt 00:14:51]} Ba6 {[%clk 01:09:39]}
{[%emt 00:07:10]} 12. Re1 {[%clk 00:48:13]} {[%emt 00:11:03]} Re8 {[%clk
01:00:28]} {[%emt 00:09:41]} 13. Ne5 {[%clk 00:33:03]} {[%emt 00:15:40]} Bd6
{[%clk 00:49:47]} {[%emt 00:11:11]} 14. Nxc6 {[%clk 00:28:40]} {[%emt
00:04:53]} Rxc6 {[%clk 00:47:57]} {[%emt 00:02:21]} 15. e4 {[%clk 00:28:15]}
{[%emt 00:00:54]} dxe4 {[%clk 00:46:35]} {[%emt 00:01:53]} 16. Nxe4 {[%clk
00:27:45]} {[%emt 00:01:00]} Rc7 {[%clk 00:46:29]} {[%emt 00:00:36]} 17. Nxd6
{[%clk 00:18:55]} {[%emt 00:09:19]} Qxd6 {[%clk 00:44:40]} {[%emt 00:02:19]} 18.
d5 {[%clk 00:17:39]} {[%emt 00:01:46]} Nd7 {[%clk 00:40:18]} {[%emt 00:04:52]}
19. Qc2 {[%clk 00:10:30]} {[%emt 00:07:39]} b5 {[%clk 00:28:38]} {[%emt
00:12:11]} 20. Rad1 {[%clk 00:07:16]} {[%emt 00:03:44]} Qb6 {[%clk 00:28:14]}
{[%emt 00:00:53]} 21. Qc3 {[%clk 00:02:16]} {[%emt 00:05:31]} Nf6 {[%clk
00:27:24]} {[%emt 00:01:20]} 22. Qc2 {[%clk 00:00:54]} {[%emt 00:01:51]} exd5
{[%clk 00:24:29]} {[%emt 00:03:26]} 23. Bxf6 {[%clk 00:00:57]} {[%emt
00:00:27]} Rxe1+ {[%clk 00:24:20]} {[%emt 00:00:39]} 24. Rxe1 {[%emt 00:00:10]}
gxf6 {[%clk 00:24:34]} {[%emt 00:00:14]} 25. Re8+ {[%clk 00:01:14]} {[%emt
00:00:35]} Kg7 {[%clk 00:24:55]} {[%emt 00:00:09]} 26. Bxd5 {[%clk 00:01:13]}
{[%emt 00:00:31]} Rc8 {[%clk 00:24:42]} {[%emt 00:00:42]} 27. Re7 {[%clk
00:00:59]} {[%emt 00:00:44]} Rc7 {[%clk 00:24:44]} {[%emt 00:00:29]} 28. Re8
{[%clk 00:00:47]} {[%emt 00:00:42]} Rc8 {[%emt 00:00:13]} 29. Re4 {[%emt
00:00:15]} Rg8 {[%clk 00:22:37]} {[%emt 00:02:08]} 30. Rh4 {[%clk 00:00:46]}
{[%emt 00:00:31]} h6 {[%clk 00:22:18]} {[%emt 00:00:49]} 31. Qd2 {[%clk
00:00:48]} {[%emt 00:00:28]} Rh8 {[%clk 00:19:17]} {[%emt 00:03:30]} 32. Rg4+
{[%clk 00:00:59]} {[%emt 00:00:19]} Kf8 {[%clk 00:19:36]} {[%emt 00:00:11]} 33.
Rh4 {[%clk 00:01:08]} {[%emt 00:00:21]} Kg7 {[%clk 00:19:54]} {[%emt 00:00:12]}
34. Qf4 {[%clk 00:00:50]} {[%emt 00:00:47]} Bc8 {[%clk 00:19:29]} {[%emt
00:00:55]} 35. a3 {[%clk 00:00:40]} {[%emt 00:00:41]} bxc4 {[%clk 00:18:57]}
{[%emt 00:01:02]} 36. Bxc4 {[%clk 00:00:43]} {[%emt 00:00:27]} Qa5 {[%clk
00:18:50]} {[%emt 00:00:36]} 37. Qe3 {[%clk 00:00:38]} {[%emt 00:00:35]} Qxa3
{[%clk 00:18:44]} {[%emt 00:00:36]} 38. h3 {[%clk 00:00:52]} {[%emt 00:00:17]}
Qa1+ {[%clk 00:18:45]} {[%emt 00:00:29]} 39. Kh2 {[%clk 00:01:11]} {[%emt
00:00:11]} Qe5 {[%clk 00:17:19]} {[%emt 00:01:56]} 40. Re4 {[%clk 00:01:18]}
{[%emt 00:00:22]} Qf5 {[%clk 00:15:36]} {[%emt 00:02:13]} 41. g4 {[%clk
00:00:52]} {[%emt 00:00:57]} Qd7 {[%clk 00:15:50]} {[%emt 00:00:15]} 42. Qxc5
{[%clk 00:00:38]} {[%emt 00:00:44]} Re8 {[%clk 00:15:19]} {[%emt 00:01:02]} 43.
Rf4 {[%clk 00:00:34]} {[%emt 00:00:34]} Qe7 {[%clk 00:14:33]} {[%emt 00:01:15]}
44. Qd4 {[%clk 00:00:39]} {[%emt 00:00:25]} Qe5 {[%clk 00:14:32]} {[%emt
00:00:31]} 45. Qd2 {[%emt 00:00:39]} 0-1

[Event "Lilla Elite Hotels Open 2024"]
[Site "Elite Stadshotellet, Kungsgatan 6, Vaxjo, Sweden"]
[Date "2024.02.11"]
[Round "7.1"]
[White "Martin, Johannes"]
[Black "Viswanath, Rishi"]
[Result "1/2-1/2"]
[TimeControl "15 minutes + 5 seconds per move from move one (Round 1 - 4) / 90 minutes + 30 seconds per move from move one (Round 5 - 8)"]
[WhiteFideId "1742698"]
[BlackFideId "1774905"]
[WhiteElo "1483"]
[BlackElo "1541"]

1. e4 {[%clk 01:30:56]} {[%emt 00:00:04]} e6 {[%clk 01:30:26]} {[%emt
00:00:33]} 2. Nf3 {[%clk 01:31:13]} {[%emt 00:00:14]} d5 {[%clk 01:30:43]}
{[%emt 00:00:12]} 3. exd5 {[%clk 01:31:19]} {[%emt 00:00:26]} exd5 {[%clk
01:31:03]} {[%emt 00:00:09]} 4. d4 {[%clk 01:31:38]} {[%emt 00:00:11]} Bd6
{[%clk 01:30:39]} {[%emt 00:00:53]} 5. Bg5 {[%clk 01:30:41]} {[%emt 00:01:28]}
f6 {[%clk 01:30:14]} {[%emt 00:00:55]} 6. Bh4 {[%clk 01:30:14]} {[%emt
00:00:58]} Bg4 {[%clk 01:28:38]} {[%emt 00:02:05]} 7. Be2 {[%clk 01:28:11]}
{[%emt 00:02:33]} Ne7 {[%clk 01:27:19]} {[%emt 00:01:49]} 8. Nc3 {[%clk
01:23:33]} {[%emt 00:05:09]} c6 {[%clk 01:25:45]} {[%emt 00:02:03]} 9. Bg3
{[%clk 01:09:47]} {[%emt 00:14:16]} Qc7 {[%clk 01:17:46]} {[%emt 00:08:29]} 10.
Bxd6 {[%clk 01:08:29]} {[%emt 00:01:48]} Qxd6 {[%clk 01:18:01]} {[%emt
00:00:15]} 11. Nh4 {[%clk 00:59:58]} {[%emt 00:09:00]} Bxe2 {[%clk 00:59:39]}
{[%emt 00:18:52]} 12. Qxe2 {[%clk 00:59:31]} {[%emt 00:00:58]} O-O {[%clk
00:59:15]} {[%emt 00:00:53]} 13. O-O {[%clk 00:56:59]} {[%emt 00:03:03]} Na6
{[%clk 00:55:14]} {[%emt 00:04:31]} 14. Rfe1 {[%clk 00:36:24]} {[%emt
00:21:04]} Rfe8 {[%clk 00:52:37]} {[%emt 00:03:07]} 15. Qh5 {[%clk 00:30:28]}
{[%emt 00:06:26]} Qd7 {[%clk 00:30:00]} {[%emt 00:23:08]} 16. Re2 {[%clk
00:23:53]} {[%emt 00:07:05]} g5 {[%clk 00:24:08]} {[%emt 00:06:22]} 17. Nf3
{[%clk 00:20:12]} {[%emt 00:04:10]} Ng6 {[%clk 00:23:22]} {[%emt 00:01:17]} 18.
Rae1 {[%clk 00:13:49]} {[%emt 00:06:53]} Rxe2 {[%clk 00:21:19]} {[%emt
00:02:32]} 19. Nxe2 {[%clk 00:14:05]} {[%emt 00:00:14]} Re8 {[%clk 00:19:41]}
{[%emt 00:02:09]} 20. Ng3 {[%clk 00:11:08]} {[%emt 00:03:26]} Nc7 {[%clk
00:14:25]} {[%emt 00:05:47]} 21. Rxe8+ {[%clk 00:09:51]} {[%emt 00:01:47]} Nxe8
{[%clk 00:13:57]} {[%emt 00:00:58]} 22. Ne2 {[%clk 00:05:28]} {[%emt 00:04:53]}
Qe6 {[%clk 00:10:20]} {[%emt 00:04:06]} 23. Nd2 {[%clk 00:02:35]} {[%emt
00:03:24]} g4 {[%clk 00:06:51]} {[%emt 00:03:59]} 24. Ng3 {[%clk 00:02:02]}
{[%emt 00:01:04]} Ng7 {[%clk 00:02:07]} {[%emt 00:05:13]} 25. Qh6 {[%clk
00:02:13]} {[%emt 00:00:19]} f5 {[%clk 00:01:34]} {[%emt 00:01:04]} 26. Qe3
{[%clk 00:02:22]} {[%emt 00:00:21]} Qf6 {[%clk 00:01:22]} {[%emt 00:00:42]} 27.
Ne2 {[%clk 00:02:24]} {[%emt 00:00:27]} f4 {[%clk 00:01:03]} {[%emt 00:00:50]}
28. Qd3 {[%clk 00:01:46]} {[%emt 00:01:08]} Nf5 {[%clk 00:01:13]} {[%emt
00:00:20]} 29. c4 {[%clk 00:01:59]} {[%emt 00:00:17]} Nfe7 {[%clk 00:00:51]}
{[%emt 00:00:51]} 30. cxd5 {[%clk 00:01:59]} {[%emt 00:00:31]} Nxd5 {[%clk
00:01:10]} {[%emt 00:00:12]} 31. Qe4 {[%clk 00:01:38]} {[%emt 00:00:49]} Kf7
{[%clk 00:01:06]} {[%emt 00:00:35]} 32. Nc4 {[%clk 00:01:42]} {[%emt 00:00:26]}
Qe6 {[%clk 00:01:00]} {[%emt 00:00:36]} 33. Ne5+ {[%clk 00:01:17]} {[%emt
00:00:55]} Kf6 {[%clk 00:00:42]} {[%emt 00:00:43]} 1/2-1/2

[Event "Lilla Elite Hotels Open 2024"]
[Site "Elite Stadshotellet, Kungsgatan 6, Vaxjo, Sweden"]
[Date "2024.02.11"]
[Round "7.2"]
[White "Johansson, Sigge"]
[Black "Madevan Vaishnavi, Yaashvan"]
[Result "0-1"]
[TimeControl "15 minutes + 5 seconds per move from move one (Round 1 - 4) / 90 minutes + 30 seconds per move from move one (Round 5 - 8)"]
[WhiteFideId "1742612"]
[BlackFideId "1772180"]
[WhiteElo "1577"]
[BlackElo "1461"]

1. e4 {[%clk 01:30:55]} {[%emt 00:00:05]} c5 {[%clk 01:30:56]} {[%emt
00:00:06]} 2. Nf3 {[%clk 01:31:20]} {[%emt 00:00:04]} g6 {[%clk 01:31:20]}
{[%emt 00:00:06]} 3. d4 {[%clk 01:31:45]} {[%emt 00:00:05]} cxd4 {[%clk
01:31:44]} {[%emt 00:00:06]} 4. Nxd4 {[%clk 01:32:11]} {[%emt 00:00:04]} Nc6
{[%clk 01:32:07]} {[%emt 00:00:07]} 5. Nc3 {[%clk 01:32:29]} {[%emt 00:00:12]}
Bg7 {[%clk 01:32:30]} {[%emt 00:00:07]} 6. Be3 {[%clk 01:32:55]} {[%emt
00:00:04]} Nf6 {[%clk 01:32:53]} {[%emt 00:00:07]} 7. Bc4 {[%clk 01:33:03]}
{[%emt 00:00:21]} O-O {[%clk 01:32:58]} {[%emt 00:00:26]} 8. f3 {[%clk
01:33:22]} {[%emt 00:00:12]} Qb6 {[%clk 01:29:56]} {[%emt 00:03:31]} 9. Ncb5
{[%clk 01:11:04]} {[%emt 00:22:48]} a6 {[%clk 01:22:30]} {[%emt 00:07:56]} 10.
Nf5 {[%clk 01:09:36]} {[%emt 00:01:58]} Qd8 {[%clk 01:22:40]} {[%emt 00:00:20]}
11. Nh6+ {[%clk 01:09:29]} {[%emt 00:00:37]} Bxh6 {[%clk 01:22:32]} {[%emt
00:00:38]} 12. Bxh6 {[%clk 01:09:54]} {[%emt 00:00:05]} axb5 {[%clk 01:22:56]}
{[%emt 00:00:06]} 13. Bxf8 {[%clk 01:10:18]} {[%emt 00:00:06]} Kxf8 {[%clk
01:23:02]} {[%emt 00:00:24]} 14. Bxb5 {[%clk 01:09:53]} {[%emt 00:00:56]} Qa5+
{[%clk 01:23:22]} {[%emt 00:00:10]} 0-1

[Event "Lilla Elite Hotels Open 2024"]
[Site "Elite Stadshotellet, Kungsgatan 6, Vaxjo, Sweden"]
[Date "2024.02.11"]
[Round "8.1"]
[White "Viswanath, Rishi"]
[Black "Johansson, Stina"]
[Result "1-0"]
[TimeControl "15 minutes + 5 seconds per move from move one (Round 1 - 4) / 90 minutes + 30 seconds per move from move one (Round 5 - 8)"]
[WhiteFideId "1774905"]
[BlackFideId "1739026"]
[WhiteElo "1541"]
[BlackElo "1437"]

1. Nf3 {[%clk 01:30:53]} {[%emt 00:00:05]} Nf6 {[%clk 01:30:52]} {[%emt
00:00:09]} 2. c4 {[%clk 01:31:16]} {[%emt 00:00:08]} g6 {[%clk 01:31:09]}
{[%emt 00:00:13]} 3. d4 {[%clk 01:31:25]} {[%emt 00:00:20]} Bg7 {[%clk
01:31:14]} {[%emt 00:00:25]} 4. g3 {[%clk 01:31:41]} {[%emt 00:00:14]} O-O
{[%clk 01:31:27]} {[%emt 00:00:18]} 5. Bg2 {[%clk 01:32:02]} {[%emt 00:00:08]}
c6 {[%clk 01:31:38]} {[%emt 00:00:20]} 6. O-O {[%clk 01:32:15]} {[%emt
00:00:16]} d5 {[%clk 01:31:15]} {[%emt 00:00:54]} 7. Nc3 {[%clk 01:32:23]}
{[%emt 00:00:21]} Bf5 {[%clk 01:28:17]} {[%emt 00:03:27]} 8. Qb3 {[%clk
01:32:33]} {[%emt 00:00:21]} Qb6 {[%clk 01:25:16]} {[%emt 00:03:31]} 9. Nh4
{[%clk 01:30:25]} {[%emt 00:02:36]} Qxb3 {[%clk 01:23:36]} {[%emt 00:02:13]} 10.
axb3 {[%clk 01:30:27]} {[%emt 00:00:28]} Be4 {[%clk 01:22:47]} {[%emt
00:01:19]} 11. Nxe4 {[%clk 01:26:06]} {[%emt 00:04:51]} Nxe4 {[%clk 01:22:39]}
{[%emt 00:00:38]} 12. Rd1 {[%clk 01:24:39]} {[%emt 00:01:56]} Nd7 {[%clk
01:20:25]} {[%emt 00:02:44]} 13. f3 {[%clk 01:16:31]} {[%emt 00:08:38]} Nd6
{[%clk 01:18:32]} {[%emt 00:02:23]} 14. e4 {[%clk 01:15:22]} {[%emt 00:01:40]}
e6 {[%clk 01:13:55]} {[%emt 00:05:07]} 15. e5 {[%clk 01:06:42]} {[%emt
00:09:10]} Nc8 {[%clk 01:12:53]} {[%emt 00:01:32]} 16. f4 {[%clk 01:04:59]}
{[%emt 00:02:13]} Ne7 {[%clk 01:10:25]} {[%emt 00:02:58]} 17. Bd2 {[%clk
01:02:46]} {[%emt 00:02:43]} b6 {[%clk 01:06:55]} {[%emt 00:04:00]} 18. Bc3
{[%clk 01:00:38]} {[%emt 00:02:38]} f6 {[%clk 01:02:00]} {[%emt 00:05:24]} 19.
Bd2 {[%clk 00:48:49]} {[%emt 00:12:20]} h6 {[%clk 00:47:11]} {[%emt 00:15:18]}
20. Nf3 {[%clk 00:43:42]} {[%emt 00:05:37]} c5 {[%clk 00:42:34]} {[%emt
00:05:07]} 21. Bc3 {[%clk 00:33:59]} {[%emt 00:10:13]} Nf5 {[%clk 00:37:03]}
{[%emt 00:06:01]} 22. Re1 {[%clk 00:30:16]} {[%emt 00:04:14]} fxe5 {[%clk
00:29:36]} {[%emt 00:07:57]} 23. fxe5 {[%clk 00:29:34]} {[%emt 00:01:11]} cxd4
{[%clk 00:28:44]} {[%emt 00:01:22]} 24. Nxd4 {[%clk 00:29:19]} {[%emt
00:00:46]} Bxe5 {[%clk 00:27:07]} {[%emt 00:02:07]} 25. Nxe6 {[%clk 00:28:29]}
{[%emt 00:01:20]} Bxc3 {[%clk 00:26:07]} {[%emt 00:01:30]} 26. bxc3 {[%clk
00:28:14]} {[%emt 00:00:44]} Rfc8 {[%clk 00:22:41]} {[%emt 00:03:56]} 27. Bxd5
{[%clk 00:28:11]} {[%emt 00:00:34]} Ne7 {[%clk 00:21:30]} {[%emt 00:01:41]} 28.
Bxa8 {[%clk 00:28:32]} {[%emt 00:00:09]} Rxa8 {[%clk 00:21:38]} {[%emt
00:00:21]} 29. Nc7 {[%clk 00:29:00]} {[%emt 00:00:02]} Rc8 {[%clk 00:21:44]}
{[%emt 00:00:24]} 30. Rxe7 {[%clk 00:29:28]} {[%emt 00:00:03]} Rxc7 {[%clk
00:22:00]} {[%emt 00:00:13]} 31. Rd1 {[%clk 00:29:54]} {[%emt 00:00:04]} b5
{[%clk 00:20:20]} {[%emt 00:02:10]} 32. Rdxd7 {[%clk 00:30:12]} {[%emt
00:00:12]} Rxd7 {[%clk 00:20:21]} {[%emt 00:00:30]} 33. Rxd7 {[%clk 00:30:41]}
{[%emt 00:00:01]} bxc4 {[%clk 00:20:35]} {[%emt 00:00:16]} 34. bxc4 {[%clk
00:30:51]} {[%emt 00:00:20]} Kf8 {[%clk 00:20:57]} {[%emt 00:00:07]} 35. c5
{[%clk 00:31:20]} {[%emt 00:00:01]} Ke8 {[%clk 00:21:12]} {[%emt 00:00:15]} 36.
Rd4 {[%clk 00:31:49]} {[%emt 00:00:02]} a5 {[%clk 00:21:29]} {[%emt 00:00:13]}
37. c6 {[%clk 00:32:15]} {[%emt 00:00:04]} a4 {[%clk 00:21:41]} {[%emt
00:00:18]} 38. c7 {[%clk 00:32:39]} {[%emt 00:00:05]} a3 {[%clk 00:22:04]}
{[%emt 00:00:07]} 39. c8=Q+ {[%clk 00:33:07]} {[%emt 00:00:03]} Ke7 {[%clk
00:22:27]} {[%emt 00:00:06]} 40. Qc6 {[%clk 00:32:46]} {[%emt 00:00:52]} a2
{[%clk 00:22:44]} {[%emt 00:00:13]} 41. Rd7+ {[%clk 00:33:13]} {[%emt
00:00:02]} Ke8 {[%clk 00:23:05]} {[%emt 00:00:10]} 42. Qc8# {[%clk 00:33:41]}
{[%emt 00:00:02]} 1-0

[Event "Lilla Elite Hotels Open 2024"]
[Site "Elite Stadshotellet, Kungsgatan 6, Vaxjo, Sweden"]
[Date "2024.02.11"]
[Round "8.2"]
[White "Madevan Vaishnavi, Yaashvan"]
[Black "Martin, Johannes"]
[Result "1-0"]
[TimeControl "15 minutes + 5 seconds per move from move one (Round 1 - 4) / 90 minutes + 30 seconds per move from move one (Round 5 - 8)"]
[WhiteFideId "1772180"]
[BlackFideId "1742698"]
[WhiteElo "1461"]
[BlackElo "1483"]

1. e4 {[%clk 01:30:59]} e5 {[%clk 01:30:55]} {[%emt 00:00:05]} 2. Nf3 {[%clk
01:31:24]} {[%emt 00:00:04]} Nc6 {[%clk 01:31:22]} {[%emt 00:00:04]} 3. d4
{[%clk 01:31:49]} {[%emt 00:00:05]} exd4 {[%clk 01:31:20]} {[%emt 00:00:32]} 4.
Bc4 {[%clk 01:32:13]} {[%emt 00:00:06]} Bc5 {[%clk 01:28:53]} {[%emt 00:02:57]}
5. c3 {[%clk 01:32:36]} {[%emt 00:00:07]} dxc3 {[%clk 01:27:08]} {[%emt
00:02:15]} 6. Bxf7+ {[%clk 01:32:49]} {[%emt 00:00:16]} Kxf7 {[%clk 01:25:43]}
{[%emt 00:01:55]} 7. Qd5+ {[%clk 01:33:13]} {[%emt 00:00:05]} Kf8 {[%clk
01:24:59]} {[%emt 00:01:15]} 8. Qxc5+ {[%clk 01:33:14]} {[%emt 00:00:29]} Qe7
{[%clk 01:25:20]} {[%emt 00:00:08]} 9. Qxe7+ {[%clk 01:29:31]} {[%emt
00:04:13]} Ngxe7 {[%clk 01:25:25]} {[%emt 00:00:26]} 10. Nxc3 {[%clk 01:29:51]}
{[%emt 00:00:10]} h6 {[%clk 01:24:56]} {[%emt 00:00:59]} 11. Nb5 {[%clk
01:28:30]} {[%emt 00:01:52]} a6 {[%clk 01:22:05]} {[%emt 00:03:21]} 12. Nxc7
{[%clk 01:28:43]} {[%emt 00:00:16]} Ra7 {[%clk 01:21:04]} {[%emt 00:01:31]} 13.
Be3 {[%clk 01:29:01]} {[%emt 00:00:12]} b6 {[%clk 01:21:27]} {[%emt 00:00:07]}
14. Nd5 {[%clk 01:28:39]} {[%emt 00:00:52]} Nxd5 {[%clk 01:18:23]} {[%emt
00:03:34]} 15. exd5 {[%clk 01:29:01]} {[%emt 00:00:08]} Ne7 {[%clk 01:17:41]}
{[%emt 00:01:12]} 16. Bxb6 {[%clk 01:28:44]} {[%emt 00:00:47]} Rb7 {[%clk
01:17:35]} {[%emt 00:00:37]} 17. Bc5 {[%clk 01:29:07]} {[%emt 00:00:07]} Rxb2
{[%clk 01:11:38]} {[%emt 00:06:26]} 18. Nh4 {[%clk 01:28:48]} {[%emt 00:00:48]}
Kf7 {[%clk 01:09:21]} {[%emt 00:02:48]} 19. Bxe7 {[%clk 01:28:54]} {[%emt
00:00:24]} Re8 {[%clk 01:09:08]} {[%emt 00:00:42]} 20. d6 {[%clk 01:29:04]}
{[%emt 00:00:20]} Bb7 {[%clk 01:09:05]} {[%emt 00:00:33]} 21. O-O {[%clk
01:29:03]} {[%emt 00:00:31]} g5 {[%clk 01:08:54]} {[%emt 00:00:42]} 22. Nf5
{[%clk 01:28:53]} {[%emt 00:00:39]} h5 {[%clk 01:04:08]} {[%emt 00:05:16]} 23.
Bxg5 {[%clk 01:24:11]} {[%emt 00:05:11]} Kg6 {[%clk 01:01:33]} {[%emt
00:03:05]} 24. Bc1 {[%clk 01:23:01]} {[%emt 00:01:41]} 1-0